fUSD/lending_fUSD_20250602
["ID","MTS","AMOUNT","RATE_DAILY","PERIOD"]
[363721342,1748844131570,-150.0,0.00041588,120]
[363721343,1748844131595,-150.0,0.000416,120]
[363721344,1748844131622,-150.0,0.000416,120]
[363721345,1748844131653,-5527.97,0.00041643,120]
[363721346,1748844131681,-2763.98,0.00041643,120]
[363721347,1748844131708,-1899.89,0.000418,90]
[363721348,1748844131734,-486.89,0.0004191,120]
[363721349,1748844131763,-5527.97,0.00041917,120]
[363721350,1748844131791,-2763.98,0.00041917,120]
[363721351,1748844131816,-200.0,0.00041999,120]
[363721352,1748844131842,-300.0,0.00042,120]
[363721353,1748844132078,-285.60487015,0.00042,120]
[363721354,1748844132105,-160.95968875,0.00042,60]
[363721355,1748844132132,-2500.0,0.00042,120]
[363721356,1748844132158,-700.0,0.00042,60]
[363721357,1748844132184,-600.0,0.00042,60]
[363721358,1748844132208,-512.96,0.00042,60]
[363721359,1748844132233,-1000.0,0.00042,90]
[363721360,1748844132259,-500.0,0.00042,90]
[363721361,1748844132284,-164.29,0.00042,120]
[363721362,1748844132309,-791.28424897,0.00042,120]
[363721363,1748844132338,-1500.0,0.00042,120]
[363721364,1748844132363,-1000.0,0.00042,120]
[363721365,1748844132388,-10228.21,0.00042,120]
[363721366,1748844132415,-643.0993964,0.00042121,120]
[363721367,1748844132445,-5527.97,0.00042191,120]
[363721368,1748844132473,-2763.98,0.00042191,120]
[363721369,1748844132500,-150.0,0.000423,120]
[363721370,1748844132525,-3437.2,0.000423,120]
[363721371,1748844132550,-213.24542027,0.00042456,120]
[363721372,1748844132578,-5527.97,0.00042465,120]
[363721373,1748844132607,-2763.98,0.00042465,120]
[363721374,1748844132634,-212.98,0.00042469,64]
[363721375,1748844132660,-6159.491,0.00042469,64]
[363721376,1748844132685,-530.24223189,0.000425,60]
[363721377,1748844132710,-3221.33149134,0.0004258,60]
[363721378,1748844132734,-2439.79085282,0.000427,120]
[363721379,1748844132759,-150.0,0.000427,120]
[363721380,1748844132784,-255.01987362,0.000427,120]
[363721381,1748844132812,-5527.97,0.00042739,120]
[363721382,1748844132839,-2763.98,0.00042739,120]
[363721383,1748844132864,-182.36,0.0004274,91]
[363721384,1748844132889,-1689.96,0.000428,90]
[363721385,1748844132914,-5000.0,0.000429,60]
[363721386,1748844132939,-1668.88,0.00042904,120]
[363721387,1748844132964,-1668.88,0.00042904,120]
[363721388,1748844132989,-1668.88,0.00042904,120]
[363721389,1748844133014,-1668.88,0.00042904,120]
[363721390,1748844133038,-1668.88,0.00042904,120]
[363721391,1748844133063,-1668.88,0.00042904,120]
[363721392,1748844133088,-1668.88,0.00042904,120]
[363721393,1748844133112,-1668.88,0.00042904,120]
[363721394,1748844133137,-1668.88,0.00042904,120]
[363721395,1748844133162,-1668.88,0.00042904,120]
[363721396,1748844133187,-1668.88,0.00042904,120]
[363721397,1748844133212,-1668.88,0.00042904,120]
[363721398,1748844133238,-1668.88,0.00042904,120]
[363721399,1748844133264,-1668.88,0.00042904,120]
[363721400,1748844133289,-1668.88,0.00042904,120]
[363721401,1748844133315,-1668.88,0.00042904,120]
[363721402,1748844133340,-1668.88,0.00042904,120]
[363721403,1748844133366,-1668.88,0.00042904,120]
[363721404,1748844133392,-1668.88,0.00042904,120]
[363721405,1748844133420,-1668.88,0.00042904,120]
[363721406,1748844133446,-1668.88,0.00042904,120]
[363721407,1748844133472,-1668.88,0.00042904,120]
[363721408,1748844133497,-1668.88,0.00042904,120]
[363721409,1748844133523,-1669.02550833,0.00042904,120]
[363721410,1748844133549,-345.0,0.00042921,90]
[363721411,1748844133574,-359.0,0.00042921,90]
[363721412,1748844133601,-2851.47231329,0.00043,120]
[363721413,1748844133626,-529.11466988,0.00043,120]
[363721414,1748844133652,-198.02934978,0.00043,120]
[363721415,1748844133677,-715.22611469,0.00043,120]
[363721416,1748844133703,-2536.24212912,0.00043,70]
[363721417,1748844133730,-2500.0,0.00043,120]
[363721418,1748844133758,-3674.0,0.00043,120]
[363721419,1748844133784,-3000.0,0.00043,120]
[363721420,1748844133809,-154.67090319,0.00043,120]
[363721421,1748844133834,-200.0,0.00043,120]
[363721422,1748844133859,-831.65,0.00043,120]
[363721423,1748844133885,-2703.35,0.00043,120]
[363721424,1748844133910,-703.77,0.00043,120]
[363721425,1748844133938,-5527.97,0.00043013,120]
[363721426,1748844133966,-2763.98,0.00043013,120]
[363721427,1748844133991,-5025.525,0.00043056,120]
[363721428,1748844134016,-5025.525,0.00043056,120]
[363721429,1748844134041,-5025.525,0.00043056,120]
[363721430,1748844134065,-5025.525,0.00043056,120]
[363721431,1748844134090,-5025.525,0.00043056,120]
[363721432,1748844134116,-3014.57804929,0.0004313,120]
[363721433,1748844134143,-1000.0,0.000432,120]
[363721434,1748844134169,-486.89,0.0004328,120]
[363721435,1748844134198,-5527.97,0.00043287,120]
[363721436,1748844134226,-2763.98,0.00043287,120]
[363721437,1748844134251,-150.0,0.000434,120]
[363721438,1748844134276,-153.442749,0.00043499,120]
[363721439,1748844134301,-2500.0,0.000435,120]
[363721440,1748844134330,-5527.97,0.00043561,120]
[363721441,1748844134358,-2763.98,0.00043561,120]
[363721442,1748844134383,-2360.28,0.000436,120]
[363721443,1748844134409,-287.74,0.000436,120]
[363721444,1748844134435,-280.04,0.000436,120]
[363721445,1748844134461,-228.02,0.000436,120]
[363721446,1748844134488,-7828.0,0.000438,120]
[363721447,1748844134512,-227.64559943,0.000438,120]
[363721448,1748844134537,-1766.98,0.000438,90]
[363721449,1748844134562,-256.11079,0.000438,120]
[363721450,1748844134587,-156.0556119,0.0004383,120]
[363721451,1748844134616,-5527.97,0.00043835,120]
[363721452,1748844134646,-2763.98,0.00043835,120]
[363721453,1748844134672,-1438.82,0.00043859,120]
[363721454,1748844134698,-841.0709,0.000439,120]
[363721455,1748844134723,-1573.71711507,0.00044,60]
[363721456,1748844134747,-3218.60957464,0.00044,120]
[363721457,1748844134945,-502.32617955,0.00044,120]
[363721458,1748844134969,-451.61764996,0.00044,120]
[363721459,1748844134992,-500.0,0.00044,120]
[363721460,1748844135012,-4687.40322171,0.00044,120]
[363721461,1748844135032,-2500.0,0.00044,120]
[363721462,1748844135054,-529.01,0.00044,120]
[363721463,1748844135077,-1500.0,0.00044,120]
[363721464,1748844135099,-3542.8653,0.00044,120]
[363721465,1748844135119,-10000.0,0.00044,120]
[363721466,1748844135141,-218.9,0.00044,85]
[363721467,1748844135165,-5527.97,0.00044109,120]
[363721468,1748844135189,-2763.98,0.00044109,120]
[363721469,1748844135210,-3341.433749,0.0004423,120]
[363721470,1748844135233,-5527.97,0.00044383,120]
[363721471,1748844135257,-2763.98,0.00044383,120]
[363721472,1748844135277,-150.0,0.000445,120]
[363721473,1748844135297,-1431.33373347,0.000445,120]
[363721474,1748844135317,-2899.80933795,0.000445,120]
[363721475,1748844135337,-379.0487832,0.000445,120]
[363721476,1748844135358,-2500.0,0.000445,120]
[363721477,1748844135381,-233.94914437,0.000445,120]
[363721478,1748844135402,-5218.04462419,0.000445,120]
[363721479,1748844135427,-3750.52,0.00044565,120]
[363721480,1748844135451,-345.0,0.00044638,90]
[363721481,1748844135475,-486.89,0.0004465,120]
[363721482,1748844135500,-5527.97,0.00044657,120]
[363721483,1748844135524,-2763.98,0.00044657,120]
[363721484,1748844135546,-238.87751886,0.00044798,120]
[363721485,1748844135568,-1427.06785567,0.00044798,120]
[363721486,1748844135594,-51031.121,0.000448,120]
[363721487,1748844135615,-20000.0,0.000449,120]
[363721488,1748844135637,-2000.0,0.000449,120]
[363721489,1748844135661,-33115.63271,0.000449,120]
[363721490,1748844135688,-5527.97,0.00044931,120]
[363721491,1748844135713,-2763.98,0.00044931,120]
[363721492,1748844135735,-9182.8,0.00044936,117]
[363721493,1748844135756,-345.0,0.00044965,90]
[363721494,1748844135777,-1000.0,0.00044999,120]
[363721495,1748844136009,-162.0,0.00045,85]
[363721496,1748844136034,-243.01012113,0.00045,120]
[363721497,1748844136059,-539.32183713,0.00045,60]
[363721498,1748844136085,-336.08927286,0.00045,80]
[363721499,1748844136111,-343.02656502,0.00045,120]
[363721500,1748844136139,-3308.04117633,0.00045,120]
[363721501,1748844136164,-334.02743246,0.00045,120]
[363721502,1748844136190,-13647.15,0.00045,120]
[363721503,1748844136215,-9327.95734072,0.00045,120]
[363721504,1748844136241,-2500.0,0.00045,120]
[363721505,1748844136266,-634.0,0.00045,120]
[363721506,1748844136292,-3674.0,0.00045,120]
[363721507,1748844136318,-267.0,0.00045,90]
[363721508,1748844136343,-3497.9645397,0.00045,120]
[363721509,1748844136368,-1457.25527911,0.00045,120]
[363721510,1748844136394,-727.8479622,0.00045,120]
[363721511,1748844136421,-61804.70609774,0.00045,60]
[363721512,1748844136448,-200.0,0.00045,91]
[363721513,1748844136475,-800.0,0.00045,120]
[363721514,1748844136501,-165.39539106,0.00045,120]
[363721515,1748844136527,-280.0,0.00045,120]
[363721516,1748844136554,-855.73980715,0.00045,120]
[363721517,1748844136582,-5000.0,0.00045,120]
[363721518,1748844136614,-5527.97,0.00045205,120]
[363721519,1748844136646,-2763.98,0.00045205,120]
[363721520,1748844136676,-5527.97,0.00045479,120]
[363721521,1748844136705,-2763.98,0.00045479,120]
[363721522,1748844136732,-861.40830412,0.000455,120]
[363721523,1748844136757,-2500.0,0.000455,120]
[363721524,1748844136782,-150.0,0.000456,120]
[363721525,1748844136807,-1116.87335318,0.000457,120]
[363721526,1748844136832,-2112.31139623,0.000457,60]
[363721527,1748844136861,-5527.97,0.00045753,120]
[363721528,1748844136888,-2763.98,0.00045753,120]
[363721529,1748844136914,-666.85586031,0.000458,90]
[363721530,1748844136941,-3175.14222874,0.0004588,120]
[363721531,1748844136966,-20000.0,0.000459,120]
[363721532,1748844136991,-12087.46287796,0.000459,120]
[363721533,1748844137016,-33013.20119999,0.000459,120]
[363721534,1748844137041,-5000.0,0.000459,60]
[363721535,1748844137067,-1000.0,0.00045999,120]
[363721536,1748844137093,-644.79446245,0.00045999,60]
[363721537,1748844137119,-425.78352241,0.00046,120]
[363721538,1748844137145,-1200.000009,0.00046,60]
[363721539,1748844137171,-2380.75883183,0.00046,120]
[363721540,1748844137196,-500.0,0.00046,120]
[363721541,1748844137222,-2500.0,0.00046,120]
[363721542,1748844137247,-2000.0,0.00046,120]
[363721543,1748844137274,-10000.0,0.00046,120]
[363721544,1748844137300,-71571.0,0.00046,120]
[363721545,1748844137326,-39229.0522459,0.00046,120]
[363721546,1748844137352,-5892.69914323,0.00046,120]
[363721547,1748844137379,-1500.0,0.00046,120]
[363721548,1748844137408,-7001.62144835,0.00046,120]
[363721549,1748844137442,-4092.64651271,0.00046,120]
[363721550,1748844137468,-10000.0,0.00046,120]
[363721551,1748844137495,-486.89,0.0004602,120]
[363721552,1748844137524,-5527.97,0.00046027,120]
[363721553,1748844137552,-2763.98,0.00046027,120]
[363721554,1748844137578,-621.78829552,0.00046089,117]
[363721555,1748844137603,-599.60298507,0.0004609,117]
[363721556,1748844137630,-566.11492755,0.0004609,117]
[363721557,1748844137657,-308.54811287,0.0004609,117]
[363721558,1748844137683,-4660861.88873375,0.0004618,120]
[363721559,1748844139759,171.83,0.00018543,2]
[363721560,1748844147252,-171.83,0.00024724,120]
[363721561,1748844147311,-171.83,0.00027814,120]
[363721562,1748844147422,-339138.11126625,0.0004618,120]
[363721563,1748844147450,-224.88050613,0.00046264,120]
[363721564,1748844147477,-5056.32591497,0.00046267,120]
[363721565,1748844147504,-1231.41212149,0.00046271,120]
[363721566,1748844147532,-321.86842244,0.00046272,120]
[363721567,1748844147558,-399.6645033,0.00046281,120]
[363721568,1748844147584,-224.88050613,0.00046301,120]
[363721569,1748844147612,-5527.97,0.00046301,120]
[363721570,1748844147640,-2763.98,0.00046301,120]
[363721571,1748844147667,-500.0,0.00046304,90]
[363721572,1748844147693,-578.20924309,0.00046304,90]
[363721573,1748844147719,-300.0,0.00046304,90]
[363721574,1748844147746,-5056.32591497,0.00046312,120]
[363721575,1748844147772,-224.88050613,0.00046328,120]
[363721576,1748844147797,-200.0,0.00046329,120]
[363721577,1748844147822,-1231.41212149,0.00046342,120]
[363721578,1748844147847,-3336.39201091,0.00046351,120]
[363721579,1748844147869,-1231.41212149,0.00046354,120]
[363721580,1748844147891,-345.0,0.00046355,90]
[363721581,1748844147916,-321.86842244,0.00046371,120]
[363721582,1748844147941,-399.6645033,0.00046375,120]
[363721583,1748844147969,-500.0,0.00046399,120]
[363721584,1748844147994,-151.0,0.00046399,120]
[363721585,1748844148020,-557.5788265,0.00046399,120]
[363721586,1748844148046,-339.66987959,0.00046399,120]
[363721587,1748844148072,-300.0,0.00046399,120]
[363721588,1748844148098,-399.6645033,0.00046408,120]
[363721589,1748844148124,-5056.32591497,0.00046414,120]
[363721590,1748844148151,-200.0,0.0004643,120]
[363721591,1748844148178,-321.86842244,0.00046455,120]
[363721592,1748844148205,-321.86842244,0.00046457,120]
[363721593,1748844148232,-1231.41212149,0.00046458,120]
[363721594,1748844148258,-224.88050613,0.00046466,120]
[363721595,1748844148284,-3336.39201091,0.00046472,120]
[363721596,1748844148310,-3336.39201091,0.00046475,120]
[363721597,1748844148336,-5056.32591497,0.00046489,120]
[363721598,1748844148362,-399.6645033,0.00046493,120]
[363721599,1748844148388,-3336.39201091,0.00046495,120]
[363721600,1748844148416,-371.22426504,0.00046499,120]
[363721601,1748844148445,-500.0,0.00046499,120]
[363721602,1748844148472,-151.0,0.00046499,120]
[363721603,1748844148497,-151.0,0.00046499,120]
[363721604,1748844148523,-537.6845,0.00046499,120]
[363721605,1748844148549,-300.0,0.00046499,120]
[363721606,1748844148575,-300.0,0.00046499,120]
[363721607,1748844148599,-5085.0,0.000465,110]
[363721608,1748844148625,-5002.25,0.000465,120]
[363721609,1748844148651,-3751.0,0.000465,120]
[363721610,1748844148675,-10206.72,0.000465,120]
[363721611,1748844148701,-10204.53,0.000465,120]
[363721612,1748844148728,-151.41701202,0.00046574,60]
[363721613,1748844148753,-200.0,0.00046574,60]
[363721614,1748844148780,-300.0,0.00046574,60]
[363721615,1748844148805,-151.0,0.00046574,60]
[363721616,1748844148830,-300.0,0.00046574,60]
[363721617,1748844148857,-500.0,0.00046574,60]
[363721618,1748844148881,-151.0,0.00046574,60]
[363721619,1748844148908,-151.0,0.00046574,120]
[363721620,1748844148934,-500.0,0.00046574,60]
[363721621,1748844148961,-300.0,0.00046574,120]
[363721622,1748844148987,-300.0,0.00046574,60]
[363721623,1748844149012,-300.0,0.00046574,120]
[363721624,1748844149037,-151.0,0.00046574,120]
[363721625,1748844149065,-500.0,0.00046574,120]
[363721626,1748844149092,-300.0,0.00046574,120]
[363721627,1748844149117,-518.5,0.00046574,120]
[363721628,1748844149143,-1000.0,0.00046574,60]
[363721629,1748844149174,-5527.97,0.00046575,120]
[363721630,1748844149203,-2763.98,0.00046575,120]
[363721631,1748844149229,-1114.83,0.00046575,60]
[363721632,1748844149581,1037.0,0.00046574,120]
[363721633,1748844149745,1075.369,0.00046499,120]
[363721634,1748844161371,1168.04147029,0.0004518,120]
[363721635,1748844163521,-209.2,0.00039565,30]
[363721636,1748844163554,-209.2,0.00039565,30]
[363721637,1748844163584,-6043.9715282,0.00039565,30]
[363721638,1748844163618,-4206.40925188,0.00039565,30]
[363721639,1748844163650,-900.42417633,0.00039565,30]
[363721640,1748844163681,-2255.72301939,0.00039565,30]
[363721641,1748844163714,-5017.17392648,0.00039565,30]
[363721642,1748844163745,-207.88318675,0.00039565,30]
[363721643,1748844163775,-2754.38562618,0.00039565,30]
[363721644,1748844163804,-7576.07542079,0.00039565,30]
[363721645,1748844163838,-6870.09931431,0.00039565,30]
[363721646,1748844163867,-272.28538323,0.00039565,30]
[363721647,1748844163895,-2749.71214072,0.00039565,30]
[363721648,1748844163928,-1203.32998429,0.00039565,30]
[363721649,1748844163957,-1794.79329171,0.00039565,30]
[363721650,1748844163984,-207.70391426,0.00039565,31]
[363721651,1748844164017,-3608.53967449,0.00039565,30]
[363721652,1748844164045,-2376.44347738,0.00039565,30]
[363721653,1748844164074,-623.07959067,0.00039565,30]
[363721654,1748844164103,-1493.0778543,0.00039565,30]
[363721655,1748844164132,-4171.95270485,0.00039565,30]
[363721656,1748844164161,-2243.72525011,0.00039565,30]
[363721657,1748844164190,-11466.65539413,0.00039565,30]
[363721658,1748844164220,-2073.45101352,0.00039565,30]
[363721659,1748844164249,-1290.27334024,0.00039565,45]
[363721660,1748844164279,-358.52756771,0.00039565,30]
[363721661,1748844164311,-2025.53424066,0.00039565,30]
[363721662,1748844164342,-1000.0,0.00039565,30]
[363721663,1748844164371,-1000.0,0.00039565,30]
[363721664,1748844164402,-1000.0,0.00039565,30]
[363721665,1748844164435,-1320.0,0.00039565,31]
[363721666,1748844164466,-1320.0,0.00039565,31]
[363721667,1748844164498,-1320.0,0.00039565,31]
[363721668,1748844164528,-1320.0,0.00039565,31]
[363721669,1748844164558,-1000.0,0.00039565,30]
[363721670,1748844164589,-1000.0,0.00039565,30]
[363721671,1748844164618,-1000.0,0.00039565,30]
[363721672,1748844164647,-1000.0,0.00039565,30]
[363721673,1748844164676,-1000.0,0.00039565,30]
[363721674,1748844164705,-1000.0,0.00039565,30]
[363721675,1748844164735,-1000.0,0.00039565,30]
[363721676,1748844164765,-1000.0,0.00039565,30]
[363721677,1748844164795,-1000.0,0.00039565,30]
[363721678,1748844164823,-1000.0,0.00039565,30]
[363721679,1748844164853,-1000.0,0.00039565,30]
[363721680,1748844164882,-1000.0,0.00039565,30]
[363721681,1748844164911,-1000.0,0.00039565,30]
[363721682,1748844164940,-1000.0,0.00039565,30]
[363721683,1748844164969,-1000.0,0.00039565,30]
[363721684,1748844164998,-1000.0,0.00039565,30]
[363721685,1748844165028,-799.92033562,0.00039565,30]
[363721686,1748844165057,-296.86744011,0.00039565,30]
[363721687,1748844165086,-817.66310768,0.00039565,30]
[363721688,1748844165115,-1000.0,0.00039565,30]
[363721689,1748844165143,-1000.0,0.00039565,30]
[363721690,1748844165172,-1000.0,0.00039565,30]
[363721691,1748844165200,-1000.0,0.00039565,30]
[363721692,1748844165229,-1000.0,0.00039565,30]
[363721693,1748844165257,-1000.0,0.00039565,30]
[363721694,1748844165287,-209.2,0.00039565,30]
[363721695,1748844165318,-209.2,0.00039565,30]
[363721696,1748844165348,-209.2,0.00039565,30]
[363721697,1748844165377,-1000.0,0.00039565,30]
[363721698,1748844165405,-1000.0,0.00039565,30]
[363721699,1748844165436,-502.76777553,0.00039565,30]
[363721700,1748844165461,-3245.95194034,0.00039565,30]
[363721701,1748844165485,-518.88379361,0.00039565,30]
[363721702,1748844165511,-387.80097491,0.00039565,30]
[363721703,1748844165536,-889.58651256,0.00039565,30]
[363721704,1748844165561,-1000.0,0.00039565,30]
[363721705,1748844165586,-2424.55327038,0.00039565,30]
[363721706,1748844165611,-1075.57658367,0.00039565,30]
[363721707,1748844165640,-2830.32617679,0.00039565,30]
[363721708,1748844165666,-5945.20118667,0.00039565,30]
[363721709,1748844165692,-2039.91519303,0.00039565,30]
[363721710,1748844165718,-750.68072731,0.00039565,30]
[363721711,1748844165744,-1896.47162328,0.00039565,30]
[363721712,1748844166160,-7830.58745801,0.00039565,30]
[363721713,1748844166208,-2500.0,0.00039565,30]
[363721714,1748844166234,-8902.44226601,0.00039565,30]
[363721715,1748844166259,-871.35391799,0.00039565,30]
[363721716,1748844166284,-2181.02571604,0.00039565,30]
[363721717,1748844166309,-879.68777229,0.00039565,30]
[363721718,1748844166335,-198.06044073,0.00039565,30]
[363721719,1748844166362,-1642.28123146,0.00039565,30]
[363721720,1748844166387,-947.54745222,0.00039565,30]
[363721721,1748844166412,-212.080767,0.00039565,30]
[363721722,1748844166441,-978.90112807,0.00039565,30]
[363721723,1748844166467,-1906.88104121,0.00039565,30]
[363721724,1748844166493,-1030.5655861,0.00039565,30]
[363721725,1748844166518,-357.78501804,0.00039565,30]
[363721726,1748844166543,-1126.37735716,0.00039565,30]
[363721727,1748844166567,-478.79939683,0.00039565,31]
[363721728,1748844166593,-1030.4036048,0.00039565,30]
[363721729,1748844166618,-3144.95712086,0.00039565,30]
[363721730,1748844166644,-997.0,0.00039565,30]
[363721731,1748844166669,-372.57933245,0.00039565,30]
[363721732,1748844166697,-50000.0,0.00039565,30]
[363721733,1748844166725,-50000.0,0.00039565,31]
[363721734,1748844166767,-50000.0,0.00039565,32]
[363721735,1748844166797,-50000.0,0.00039565,33]
[363721736,1748844166827,-50000.0,0.00039565,34]
[363721737,1748844166856,-50000.0,0.00039565,35]
[363721738,1748844166883,-3274.43053691,0.00039565,30]
[363721739,1748844166910,-1981.91902248,0.00039565,30]
[363721740,1748844166937,-2486615.0,0.00039565,30]
[363721741,1748844166966,-250.0,0.00039565,31]
[363721742,1748844166993,-250.0,0.00039565,31]
[363721743,1748844167020,-119374.27037525,0.00039565,30]
[363721744,1748844167047,-2302.03108957,0.00039565,30]
[363721745,1748844167072,-3588.00610701,0.00039565,30]
[363721746,1748844167100,-10821.0,0.00039565,30]
[363721747,1748844167126,-901414.62934744,0.00039565,30]
[363721748,1748844183383,-587020.27383579,0.00039565,30]
[363721749,1748844183411,-16668.55306341,0.00039565,30]
[363721750,1748844183440,-15000.0,0.00039565,30]
[363721751,1748844183467,-1722914.87853325,0.00039565,30]
[363721752,1748844183495,-12540.69801503,0.00039565,30]
[363721753,1748844183525,-2420.15161219,0.00039565,30]
[363721754,1748844183553,-39042.1677361,0.00039565,30]
[363721755,1748844183580,-1377911.0,0.00039565,30]
[363721756,1748844183606,-959.99912123,0.00039565,30]
[363721757,1748844183633,-10690.29721124,0.00039565,30]
[363721758,1748844183660,-214831.98087176,0.00039565,30]
[363721759,1748844189961,-408931.01912824,0.00039565,30]
[363721760,1748844189987,-146370.60677821,0.00039565,30]
[363721761,1748844190011,-201777.28776581,0.00039565,30]
[363721762,1748844190035,-5000.0,0.00039565,36]
[363721763,1748844190059,-267.35114394,0.00039565,30]
[363721764,1748844190083,-216.66888204,0.00039565,30]
[363721765,1748844190106,-2240.93,0.00039565,30]
[363721766,1748844190130,-992.32,0.00039565,30]
[363721767,1748844190154,-1000.0,0.00039565,30]
[363721768,1748844190179,-1211.79362261,0.00039565,30]
[363721769,1748844190204,-2000.0,0.00039565,31]
[363721770,1748844190229,-30278.44290763,0.00039565,30]
[363721771,1748844190254,-70000.0,0.00039565,30]
[363721772,1748844190283,-1458.13094026,0.00039565,30]
[363721773,1748844190309,-487.86350459,0.00039565,30]
[363721774,1748844190334,-561.58401705,0.00039565,30]
[363721775,1748844190359,-29842.32215706,0.00039565,30]
[363721776,1748844190385,-1252.62089433,0.00039565,30]
[363721777,1748844190410,-622.6744843,0.00039565,30]
[363721778,1748844190436,-13189.25485506,0.00039565,30]
[363721779,1748844190463,-5000.0,0.00039565,37]
[363721780,1748844190488,-1077.0,0.00039565,30]
[363721781,1748844190514,-1077.0,0.00039565,30]
[363721782,1748844190541,-1077.0,0.00039565,30]
[363721783,1748844190567,-1077.0,0.00039565,30]
[363721784,1748844190592,-1077.0,0.00039565,30]
[363721785,1748844190618,-1077.0,0.00039565,30]
[363721786,1748844190643,-1077.0,0.00039565,30]
[363721787,1748844190669,-1077.0,0.00039565,30]
[363721788,1748844190694,-1077.0,0.00039565,30]
[363721789,1748844190720,-1077.0,0.00039565,30]
[363721790,1748844190746,-1077.0,0.00039565,30]
[363721791,1748844190773,-1077.0,0.00039565,30]
[363721792,1748844190799,-1077.0,0.00039565,30]
[363721793,1748844190824,-1078.10707569,0.00039565,30]
[363721794,1748844190851,-1842.92616199,0.00039565,30]
[363721795,1748844191430,1070.44244176,0.00039565,30]
[363721796,1748844218335,1000.0,0.00018495,2]
[363721806,1748844312968,8302.08,0.00018491,2]
[363721851,1748844564530,326.21,0.00016567,2]
[363721852,1748844564724,326.21,0.00018831,2]
[363721860,1748844632110,-176.46,0.00019101,2]
[363721861,1748844632120,-250.0,0.00019121,2]
[363721862,1748844632129,-73.54,0.00019165,2]
[363721863,1748844632142,-226.46,0.00019165,2]
[363721864,1748844632151,-610.41055458,0.00019165,2]
[363721865,1748844632220,-589.58944542,0.00019165,2]
[363721866,1748844632230,-207.4,0.00019166,2]
[363721867,1748844632241,-5061.36320294,0.00019166,2]
[363721868,1748844632279,-519.86839141,0.00019166,2]
[363721911,1748844638041,-254.49582149,0.00019166,2]
[363721912,1748844638050,-420.0,0.00019178,2]
[363721913,1748844638060,-420.0,0.00019178,2]
[363721914,1748844638070,-420.0,0.00019178,2]
[363721915,1748844638079,-420.0,0.00019178,2]
[363721916,1748844638090,-420.0,0.00019178,2]
[363721917,1748844638099,-420.0,0.00019178,2]
[363721918,1748844638108,-420.0,0.00019178,2]
[363721919,1748844638119,-452.95,0.00019178,2]
[363721920,1748844638129,-394.67044183,0.00019178,2]
[363721921,1748844638138,-241.56,0.00019178,2]
[363721922,1748844638148,-173.8917435,0.00019178,2]
[363721923,1748844638157,-265.51361561,0.00019178,2]
[363721924,1748844638167,-385.47340573,0.00019178,2]
[363721925,1748844638176,-428.29528528,0.00019178,2]
[363721926,1748844638186,-250.0,0.00019178,2]
[363721927,1748844638196,-257.64604419,0.00019178,2]
[363721928,1748844638206,-420.0,0.00019178,2]
[363721929,1748844638215,-419.13315489,0.00019178,2]
[363721930,1748844638225,-420.0,0.00019178,2]
[363721931,1748844638234,-420.0,0.00019178,2]
[363721932,1748844638243,-291.79556428,0.00019178,2]
[363721933,1748844638252,-420.0,0.00019178,2]
[363721934,1748844638262,-420.0,0.00019178,2]
[363721935,1748844638271,-420.0,0.00019178,2]
[363721936,1748844638281,-420.0,0.00019178,2]
[363721937,1748844638291,-413.09874485,0.00019178,2]
[363721938,1748844638300,-297.8761688,0.00019178,2]
[363721939,1748844638310,-420.0,0.00019178,2]
[363721940,1748844638319,-420.0,0.00019178,2]
[363721941,1748844638328,-366.34874074,0.00019178,2]
[363721942,1748844638338,-420.0,0.00019178,2]
[363721943,1748844638348,-223.23,0.00019178,2]